bitfinex-derivatives/quotes_ETHF0:USTF0_20251213
["timestamp","ask_amount","ask_price","bid_price","bid_amount"]
[1765605497748,1.48948001,3088.4,3088.3,4.14008]
[1765605498747,1.48948001,3088.4,3088.3,4.85378]
[1765605507250,1.48948001,3088.4,3088.3,1.64598]
[1765605507551,1.48948001,3088.4,3088.3,4.85378]
[1765605508049,1.48948001,3088.4,3088.3,1.64598]
[1765605508351,1.48948001,3088.4,3088.3,4.85378]
[1765605517457,1.48948001,3088.4,3088.3,1.64598]
[1765605517657,1.48948001,3088.4,3088.3,4.85378]
[1765605520056,0.76908001,3088.4,3088.3,4.85378]
[1765605538065,0.00788001,3088.4,3088.3,4.85378]
[1765605543572,0.00788001,3088.4,3088.3,1.64598]
[1765605543774,0.00788001,3088.4,3088.3,4.85378]
[1765605545075,0.00788001,3088.4,3088.3,1.64598]
[1765605545372,0.00788001,3088.4,3088.3,4.85378]
[1765605553067,0.00788001,3088.4,3088.3,1.64598]
[1765605553268,0.00788001,3088.4,3088.3,4.85378]
[1765605555372,0.00788001,3088.4,3088.3,1.64598]
[1765605555574,0.00788001,3088.4,3088.3,4.85378]
[1765605570079,0.00788001,3088.4,3088.3,1.64598]
[1765605570377,0.00788001,3088.4,3088.3,4.85378]
[1765605572377,0.00788001,3088.4,3088.3,5.52614947]
[1765605582288,0.00788001,3088.4,3088.3,2.31834947]
[1765605582484,0.00788001,3088.4,3088.3,5.52614947]
[1765605591601,0.00788001,3088.4,3088.3,4.85378]
[1765605591790,0.00788001,3088.4,3088.3,5.52614947]
[1765605602011,2.11214948,3088.4,3088.3,4.85378]
[1765605602306,2.11214948,3088.4,3088.3,3.2078]
[1765605603313,1.43978001,3088.4,3088.3,3.2078]
[1765605603513,2.11214948,3088.4,3088.3,3.2078]
[1765605604413,1.8797,3088.0,3087.9,3.9192]
[1765605604616,2.55248424,3088.0,3087.9,3.9192]
[1765605605613,2.55248424,3088.0,3087.9,4.6639]
[1765605605810,2.55248424,3088.0,3087.9,3.9192]
[1765605606013,2.55248424,3088.0,3087.9,3.2078]
[1765605606214,2.55248424,3088.0,3087.9,3.9192]
[1765605606612,2.55248424,3088.0,3087.9,3.2078]
[1765605611218,1.4319,3087.9,3087.8,0.87331]
[1765605611518,1.4319,3087.9,3087.8,0.16191]
[1765605612115,2.10468424,3087.9,3087.8,1.61801]
[1765605615415,2.10468424,3087.9,3087.8,0.87331]
[1765605616924,2.10468424,3087.9,3087.7,0.00486089]
[1765605616925,1.4319,3087.8,3087.7,0.71626089]
[1765605617418,1.4319,3087.8,3087.7,1.46096089]
[1765605622721,0.712,3087.8,3087.7,1.46096089]
[1765605626331,0.712,3087.8,3087.7,4.66876089]
[1765605627934,1.4067805,3087.9,3087.8,1.4913]
[1765605628633,2.1420805,3087.9,3087.8,1.4913]
[1765605628836,3.56017442,3087.9,3087.8,1.4913]
[1765605629837,3.55653932,3087.9,3087.8,1.4913]
[1765605631236,2.1420805,3087.9,3087.8,1.4913]
[1765605631737,3.55953871,3087.9,3087.8,1.4913]
[1765605632337,3.56300459,3087.9,3087.8,1.4913]
[1765605633437,3.57253493,3087.9,3087.8,1.4913]
[1765605634438,2.1420805,3087.9,3087.8,1.4913]
[1765605635040,3.55353821,3087.9,3087.8,1.4913]
[1765605635241,2.88065771,3087.9,3087.8,1.4913]
[1765605636138,2.85349227,3087.9,3087.8,1.4913]
[1765605637036,2.85369147,3087.9,3087.8,1.4913]
[1765605637742,2.85369147,3087.9,3087.8,0.7573]
[1765605638038,1.4692,3087.8,3087.7,3.96996089]
[1765605638241,1.4692,3087.8,3087.7,4.70396089]
[1765605638445,2.87918087,3087.8,3087.7,4.70396089]
[1765605639046,1.4692,3087.8,3087.7,4.70396089]
[1765605639545,2.87918087,3087.8,3087.7,4.70396089]
[1765605640746,1.4692,3087.8,3087.7,4.70396089]
[1765605640948,2.8874621,3087.8,3087.7,4.70396089]
[1765605642149,2.86840103,3087.8,3087.7,4.70396089]
[1765605642850,1.4692,3087.8,3087.7,4.70396089]
[1765605643049,2.86840103,3087.8,3087.7,4.70396089]
[1765605643247,2.89274166,3087.8,3087.7,4.70396089]
[1765605645049,1.4692,3087.8,3087.7,4.70396089]
[1765605645251,2.89574232,3087.8,3087.7,4.70396089]
[1765605646653,2.16044232,3087.8,3087.7,4.70396089]
[1765605646852,0.7339,3088.0,3087.9,1.4913]
[1765605647055,2.12482347,3088.0,3087.9,1.4913]
[1765605648056,0.7339,3088.0,3087.9,1.4913]
[1765605648355,2.14586208,3088.0,3087.9,1.4913]
[1765605649051,0.7339,3088.0,3087.9,1.4913]
[1765605649254,5.35784198,3088.4,3088.3,0.7573]
[1765605649454,6.41682034,3088.4,3088.3,1.4913]
[1765605649756,6.41682034,3088.4,3088.3,0.7573]
[1765605649953,7.85363368,3088.4,3088.3,0.7573]
[1765605650452,6.41682034,3088.4,3088.3,0.7573]
[1765605651157,0.7339,3088.1,3088.0,1.947]
[1765605652651,2.16079278,3088.1,3088.0,1.947]
[1765605654068,0.7339,3088.1,3088.0,1.947]
[1765605654268,2.13388093,3088.1,3088.0,1.947]
[1765605654565,0.7339,3088.1,3088.0,1.947]
[1765605656768,2.13388093,3088.1,3088.0,1.947]
[1765605657168,0.7339,3088.1,3088.0,1.947]
[1765605657367,2.15064298,3088.1,3088.0,1.947]
[1765605657868,0.7339,3088.1,3088.0,1.947]
[1765605658068,2.11992517,3088.1,3088.0,1.947]
[1765605660171,0.7339,3088.1,3088.0,1.947]
[1765605660372,2.13482002,3088.1,3088.0,1.947]
[1765605661869,2.13482002,3088.1,3088.0,5.1548]
[1765605662066,2.16316147,3088.1,3088.0,5.1548]
[1765605662474,1.42926147,3088.1,3088.0,5.1548]
[1765605663172,1.49728001,3088.4,3088.3,1.4688]
[1765605664967,2.90131038,3088.4,3088.3,1.4688]
[1765605665781,2.91493575,3088.4,3088.3,1.4688]
[1765605665977,2.15353575,3088.4,3088.3,1.4688]
[1765605666171,0.73588001,3088.4,3088.3,1.4688]
[1765605667064,2.15353575,3088.4,3088.3,1.4688]
[1765605668473,0.73588001,3088.4,3088.3,1.4688]
[1765605669174,1.39787431,3088.4,3088.3,1.4688]
[1765605669476,0.00788001,3088.4,3088.3,1.4688]
[1765605670178,0.73588001,3088.4,3088.3,1.63068]
[1765605670381,2.15229395,3088.4,3088.3,1.63068]
[1765605670880,0.73588001,3088.4,3088.3,1.63068]
[1765605671177,2.12520486,3088.4,3088.3,1.63068]
[1765605672281,0.73588001,3088.4,3088.3,1.63068]
[1765605672581,2.13169799,3088.4,3088.3,1.63068]
[1765605672986,1.40369799,3088.4,3088.3,1.63068]
[1765605674285,1.44587727,3088.4,3088.3,1.63068]
[1765605675077,2.17387727,3088.4,3088.3,1.63068]
[1765605675286,0.73588001,3088.4,3088.3,1.63068]
[1765605675585,2.16984671,3088.4,3088.3,1.63068]
[1765605676378,0.73588001,3088.4,3088.3,1.63068]
[1765605676580,2.16984671,3088.4,3088.3,1.63068]
[1765605676880,0.73588001,3088.4,3088.3,1.63068]
[1765605677278,1.49728001,3088.4,3088.3,1.63068]
[1765605677478,2.90413064,3088.4,3088.3,1.63068]
[1765605678380,1.49728001,3088.4,3088.3,1.63068]
[1765605678583,2.88509154,3088.4,3088.3,1.63068]
[1765605679389,2.91893487,3088.4,3088.3,1.63068]
[1765605679887,2.8947624,3088.4,3088.3,4.83848]
[1765605681390,1.49728001,3088.4,3088.3,4.83848]
[1765605681592,2.88336006,3088.4,3088.3,4.83848]
[1765605682490,1.49728001,3088.4,3088.3,4.83848]
[1765605682988,2.91821194,3088.4,3088.3,4.83848]
[1765605683791,1.49728001,3088.4,3088.3,4.83848]
[1765605684693,2.89514739,3088.4,3088.3,4.83848]
[1765605685594,1.49728001,3088.4,3088.3,4.83848]
[1765605686783,2.89554918,3088.4,3088.3,4.83848]
[1765605687491,1.49728001,3088.4,3088.3,4.83848]
[1765605687891,2.90023904,3088.4,3088.3,4.83848]
[1765605689092,1.41972215,3088.4,3088.3,4.83848]
[1765605689590,2.14552215,3088.4,3088.3,4.83848]
[1765605690184,0.73368001,3088.4,3088.3,4.83848]
[1765605690391,2.11712147,3088.4,3088.3,4.83848]
[1765605691293,0.73368001,3088.4,3088.3,4.83848]
[1765605692592,2.15144303,3088.4,3088.3,4.83848]
[1765605693595,2.12367631,3088.4,3088.3,4.83848]
[1765605694289,0.73368001,3088.4,3088.3,4.83848]
[1765605694488,2.13541268,3088.4,3088.3,4.83848]
[1765605694889,2.16951624,3088.4,3088.3,4.83848]
[1765605695598,1.44371624,3088.4,3088.3,4.83848]
[1765605695795,0.00788001,3088.4,3088.3,4.83848]
[1765605695997,0.73368001,3088.4,3088.3,4.83848]
[1765605696901,0.00788001,3088.4,3088.3,4.83848]
[1765605703005,1.44868001,3088.4,3088.3,4.83848]
[1765605703209,2.84762618,3088.4,3088.3,4.83848]
[1765605703507,2.13262618,3088.4,3088.3,4.83848]
[1765605704202,1.40797524,3088.4,3088.3,4.83848]
[1765605705511,0.00788001,3088.4,3088.3,4.83848]
[1765605705811,1.42261857,3088.4,3088.3,4.83848]
[1765605706011,0.00788001,3088.4,3088.3,4.83848]
[1765605718932,0.00788001,3088.4,3088.3,1.63068]
[1765605719132,0.00788001,3088.4,3088.3,4.83848]
[1765605726326,0.77018001,3088.4,3088.3,4.83848]
[1765605726533,1.42289693,3088.4,3088.3,4.83848]
[1765605728235,1.40477351,3088.4,3088.3,4.83848]
[1765605728735,1.40477351,3088.4,3088.3,1.63068]
[1765605728938,1.40477351,3088.4,3088.3,4.83848]
[1765605729236,0.00788001,3088.4,3088.3,4.83848]
[1765605734338,1.5235,3088.0,3087.9,4.7111]
[1765605734537,3.58088082,3088.0,3087.9,4.7111]
[1765605734841,2.19628783,3088.0,3087.9,4.7111]
[1765605735043,1.43508783,3088.0,3087.9,4.7111]
[1765605735442,2.81996018,3088.0,3087.9,4.7111]
[1765605735636,2.82076874,3088.0,3087.9,4.873]
[1765605736941,1.43508783,3088.0,3087.9,4.873]
[1765605737246,2.82183876,3088.0,3087.9,4.873]
[1765605738449,2.84128906,3088.0,3087.9,4.873]
[1765605738640,1.43508783,3088.0,3087.9,4.873]
[1765605738841,2.84128906,3088.0,3087.9,4.873]
[1765605739848,1.43508783,3088.0,3087.9,4.873]
[1765605740848,2.86187285,3088.0,3087.9,4.873]
[1765605741238,1.43508783,3088.0,3087.9,4.873]
[1765605741847,2.85513209,3088.0,3087.9,4.873]
[1765605742142,2.85158213,3088.0,3087.9,4.873]
[1765605743248,1.43508783,3088.0,3087.9,4.873]
[1765605743443,2.81907736,3088.0,3087.9,4.873]
[1765605743941,2.14628953,3088.0,3087.9,4.873]
[1765605744348,0.7623,3088.0,3087.9,4.873]
[1765605746952,2.18539596,3088.0,3087.9,4.873]
[1765605747645,0.7623,3088.0,3087.9,4.873]
[1765605747850,2.17850735,3088.0,3087.9,4.873]
[1765605749251,0.7623,3088.0,3087.9,4.873]
[1765605749455,2.17431541,3088.0,3087.9,4.873]
[1765605750749,0.7623,3088.0,3087.9,4.873]
[1765605750950,2.1968274,3088.0,3087.9,4.873]
[1765605751151,2.9411274,3088.0,3087.9,4.873]
[1765605751749,0.00788001,3088.4,3088.3,1.70268]
[1765605752649,0.73288001,3088.4,3088.3,1.70268]
[1765605752849,2.14338713,3088.4,3088.3,1.70268]
[1765605753752,0.73288001,3088.4,3088.3,1.70268]
[1765605753957,2.1342038,3088.4,3088.3,1.70268]
[1765605754152,2.1342038,3088.4,3088.3,4.91048]
[1765605754347,0.73288001,3088.4,3088.3,4.91048]
[1765605754852,2.1342038,3088.4,3088.3,4.91048]
[1765605755352,0.73288001,3088.4,3088.3,4.91048]
[1765605756758,2.12941794,3088.4,3088.3,4.91048]
[1765605758860,2.14500935,3088.4,3088.3,4.91048]
[1765605759857,1.47718001,3088.4,3088.3,4.91048]
[1765605760057,2.8823179,3088.4,3088.3,4.91048]
[1765605761361,1.47718001,3088.4,3088.3,4.91048]
[1765605761658,2.91385568,3088.4,3088.3,4.91048]
[1765605762757,1.47718001,3088.4,3088.3,4.91048]
[1765605762965,2.88190984,3088.4,3088.3,4.91048]
[1765605764963,2.91494403,3088.4,3088.3,4.91048]
[1765605765868,1.47718001,3088.4,3088.3,4.91048]
[1765605766167,2.87090439,3088.4,3088.3,4.91048]
[1765605767365,1.47718001,3088.4,3088.3,4.91048]
[1765605767571,2.88847366,3088.4,3088.3,4.91048]
[1765605768863,0.73288001,3088.4,3088.3,4.91048]
[1765605769061,2.11493966,3088.4,3088.3,4.91048]
[1765605769260,0.73288001,3088.4,3088.3,4.91048]
[1765605769866,2.11493966,3088.4,3088.3,4.91048]
[1765605771867,0.73288001,3088.4,3088.3,4.91048]
[1765605772068,2.12777168,3088.4,3088.3,4.91048]
[1765605773363,0.73288001,3088.4,3088.3,4.91048]
[1765605773571,2.12792783,3088.4,3088.3,4.91048]
[1765605774469,2.12792783,3088.4,3088.3,1.70268]
[1765605774671,2.14082933,3088.4,3088.3,4.91048]
[1765605775665,2.12800626,3088.4,3088.3,4.91048]
[1765605777667,0.73288001,3088.4,3088.3,4.91048]
[1765605777874,2.14571641,3088.4,3088.3,4.91048]
[1765605778178,2.85121641,3088.4,3088.3,4.91048]
[1765605779475,2.85836943,3088.4,3088.3,4.91048]
[1765605780878,2.83775961,3088.4,3088.3,4.91048]
[1765605782172,2.87496386,3088.4,3088.3,4.91048]
[1765605783777,2.86284708,3088.4,3088.3,4.91048]
[1765605783978,1.4631,3087.8,3087.7,0.88237089]
[1765605784277,3.56008757,3087.8,3087.7,3.21266089]
[1765605784472,4.23260807,3087.8,3087.7,3.21266089]
[1765605784675,1.4631,3087.4,3087.3,3.2078]
[1765605784865,2.1356205,3087.4,3087.3,3.2078]
[1765605785070,3.55548178,3087.4,3087.3,3.2078]
[1765605785466,3.55565337,3087.4,3087.3,3.2078]
[1765605785675,2.1356205,3087.4,3087.3,3.2078]
[1765605785882,3.55562574,3087.4,3087.3,3.2078]
[1765605786186,3.54546114,3087.4,3087.3,3.2078]
[1765605786981,3.56970105,3087.4,3087.3,3.2078]
[1765605788374,3.56065518,3087.4,3087.3,3.2078]
[1765605788576,2.1356205,3087.4,3087.3,3.2078]
[1765605789581,3.56065518,3087.4,3087.3,3.2078]
[1765605789983,3.56744124,3087.4,3087.3,3.2078]
[1765605790583,3.55660038,3087.4,3087.3,3.2078]
[1765605792671,3.54573438,3087.4,3087.3,3.2078]
[1765605792876,2.1356205,3087.4,3087.3,3.2078]
[1765605793071,3.54573438,3087.4,3087.3,3.2078]
[1765605793276,3.54573438,3087.4,3087.3,3.9234]
[1765605793777,2.1356205,3087.4,3087.3,3.9234]
[1765605793973,3.55555674,3087.4,3087.3,3.9234]
[1765605795587,3.53410886,3087.4,3087.3,3.9234]
[1765605795883,2.1356205,3087.4,3087.3,3.9234]
[1765605796075,3.53410886,3087.4,3087.3,3.9234]
[1765605796486,3.53410886,3087.4,3087.3,4.7007]
[1765605796689,2.1356205,3087.4,3087.3,4.7007]
[1765605797488,2.1356205,3087.4,3087.3,3.9234]
[1765605798088,2.1356205,3087.4,3087.3,4.7007]
[1765605799688,2.13628671,3087.4,3087.3,4.7007]
[1765605803091,2.13628671,3087.4,3087.3,1.4929]
[1765605803989,2.13627872,3087.4,3087.3,1.4929]
[1765605806588,2.13627872,3087.4,3087.3,0.7156]
[1765605809289,2.13627872,3087.4,3087.1,4.86575]
[1765605809290,1.5318,3087.2,3087.1,4.86575]
[1765605810193,2.20497872,3087.2,3087.1,4.86575]
[1765605812689,2.20497872,3087.2,3087.1,3.36975]
[1765605812895,2.87815744,3087.2,3087.1,3.36975]
[1765605813901,2.20497872,3087.2,3087.1,3.36975]
[1765605817803,2.20497872,3087.2,3087.1,4.12205]
[1765605820405,1.5318,3087.2,3087.1,4.86575]
[1765605820704,2.20497872,3087.2,3087.1,4.86575]
[1765605827809,1.44317872,3087.2,3087.1,4.86575]
[1765605828111,1.9663,3087.5,3087.4,1.496]
[1765605828302,3.01931313,3087.5,3087.4,1.496]
[1765605829312,3.69249185,3087.5,3087.4,1.496]
[1765605831814,3.69248847,3087.5,3087.4,1.496]
[1765605835517,2.58481313,3087.5,3087.4,1.496]
[1765605835815,3.25798847,3087.5,3087.4,1.496]
[1765605836012,3.69978847,3087.5,3087.4,1.496]
[1765605836409,3.69978847,3087.5,3087.4,0.7523]
[1765605838721,0.7371,3087.2,3087.1,4.88905]
[1765605838919,1.41027534,3087.2,3087.1,4.88905]
[1765605841518,2.12627534,3087.7,3087.6,0.7534]
[1765605841713,3.85300423,3087.7,3087.6,0.7534]
[1765605842321,3.85300423,3087.7,3087.1,3.36975]
[1765605842522,0.67317534,3087.3,3087.1,3.36975]
[1765605842823,0.67317534,3087.3,3087.2,1.5193]
[1765605843624,1.41027534,3087.3,3087.2,1.5193]
[1765605844923,2.12627534,3087.3,3087.2,1.5193]
[1765605848228,0.67317534,3087.3,3087.2,1.5193]
[1765605849934,0.67317534,3087.5,3087.4,1.5193]
[1765605850438,4.6609,3087.8,3087.7,1.5193]
[1765605850630,3.88097534,3087.8,3087.7,1.5193]
[1765605851035,4.61807534,3087.8,3087.7,1.5193]
[1765605851234,1.41027534,3087.8,3087.7,1.5193]
[1765605852034,2.12627534,3087.8,3087.7,1.5193]
[1765605855043,1.4531,3087.6,3087.5,3.9612]
[1765605855345,2.12627534,3087.6,3087.5,4.7271]
[1765605856542,2.12627534,3087.6,3087.5,1.5193]
[1765605858244,2.12627534,3087.6,3087.5,0.7534]
[1765605858843,2.12627534,3087.6,3087.5,1.5193]
[1765605859043,1.4531,3087.6,3087.5,1.5193]
[1765605860044,1.38737534,3087.7,3087.6,1.4706]
[1765605861042,0.67317534,3087.7,3087.6,1.4706]
[1765605861845,1.38737534,3087.7,3087.6,1.4706]
[1765605862547,1.38708179,3087.7,3087.6,1.4706]
[1765605864447,2.16458179,3087.7,3087.6,1.4706]
[1765605865157,2.16458179,3087.7,3087.6,0.7428]
[1765605865955,2.16467284,3087.7,3087.6,0.7428]
[1765605866148,2.16467284,3087.7,3087.6,1.4514]
[1765605871857,0.67297284,3087.7,3087.6,1.4514]
[1765605872453,1.39737284,3087.7,3087.6,1.4514]
[1765605875946,2.14227284,3087.7,3087.6,1.4514]
[1765605876449,2.14227284,3087.7,3087.5,0.4218]
[1765605876450,15.74579864,3088.2,3087.5,3.79152]
[1765605876651,2.57297284,3088.0,3087.9,0.7644]
[1765605877346,2.57297284,3088.0,3087.5,3.79152]
[1765605880257,2.57297284,3088.0,3087.9,0.7644]
[1765605880458,3.62904349,3088.0,3087.9,1.473]
[1765605884457,3.62904349,3088.0,3087.9,0.7644]
[1765605892171,3.62904349,3088.0,3087.9,1.473]
[1765605892569,3.62904349,3088.0,3087.9,0.7644]
[1765605893169,1.4693,3087.7,3087.6,1.63492]
[1765605896970,0.7244,3087.7,3087.6,1.63492]
[1765605899763,1.4707,3087.7,3087.6,1.63492]
[1765605899968,0.7244,3087.7,3087.6,1.63492]
[1765605900372,1.4707,3087.7,3087.6,1.63492]
[1765605902272,0.7244,3087.7,3087.6,1.63492]
[1765605902572,0.4307,3088.0,3087.6,0.16192]
[1765605902769,1.9216,3088.0,3087.9,1.495]
[1765605903068,2.97828324,3088.0,3087.9,0.7223]
[1765605903674,0.7446,3087.7,3087.6,1.65692]
[1765605906773,0.7446,3088.0,3087.9,1.495]
[1765605906970,0.7446,3088.0,3087.9,4.7028]
[1765605907170,1.4909,3088.0,3087.9,4.7028]
[1765605907767,0.00788001,3088.4,3087.9,4.7028]
[1765605908281,0.7446,3088.0,3087.9,4.7028]
[1765605912181,1.4909,3088.0,3087.9,4.7028]
[1765605914983,0.7446,3088.0,3087.9,4.7028]
[1765605915483,1.4909,3088.0,3087.9,4.7028]
[1765605916580,1.49878001,3088.4,3088.3,1.495]
[1765605916890,2.17166133,3088.4,3088.3,1.495]
[1765605917186,2.17166133,3088.4,3088.3,0.7223]
[1765605919884,0.7446,3088.1,3088.0,5.2638]
[1765605921300,1.53028001,3088.4,3088.3,0.7315]
[1765605921601,1.53028001,3088.4,3088.3,1.47]
[1765605927606,1.4412,3088.1,3088.0,4.8551]
[1765605930905,1.4412,3088.1,3088.0,4.1444]
[1765605932006,1.4412,3088.1,3088.0,4.8551]
[1765605941511,1.4412,3088.1,3088.0,0.1619]
[1765605941709,1.4412,3088.1,3088.0,1.6473]
[1765605942607,0.7348,3088.1,3088.0,1.6473]
[1765605942914,0.7348,3088.1,3088.0,2.0937]
[1765605944012,1.40751303,3088.2,3088.1,1.4854]
[1765605944214,0.67271303,3088.2,3088.1,1.4854]
[1765605944506,3.9426,3088.3,3088.2,1.4854]
[1765605947614,0.7348,3088.3,3088.2,1.4854]
[1765605949910,1.41539304,3088.4,3088.3,1.4854]
[1765605950212,2.12179304,3088.4,3088.3,1.4854]
[1765605959034,1.44908001,3088.4,3088.3,1.4854]
[1765605970632,0.74268001,3088.4,3088.3,1.4854]
[1765605972139,0.00788001,3088.4,3088.3,1.4854]
[1765605972437,0.71678001,3088.4,3088.3,1.4854]
[1765605972636,1.46378001,3088.4,3088.3,1.4854]
[1765605973137,0.71678001,3088.4,3088.3,1.4854]
[1765605976138,0.00788001,3088.4,3088.3,1.4854]
[1765605976538,0.71678001,3088.4,3088.3,1.4854]
[1765605977141,0.00788001,3088.4,3088.3,1.4854]
[1765605981533,0.00788001,3088.4,3088.3,1.64728]
[1765605987842,0.00788001,3088.4,3088.3,2.3196595]
[1765605992659,0.00788001,3088.4,3088.3,2.31961655]
[1765606007659,1.51868001,3088.4,3088.3,0.93658]
[1765606007862,1.51868001,3088.4,3088.3,0.16188]
[1765606017972,1.51868001,3088.4,3088.3,0.93998]
[1765606020267,1.51868001,3088.4,3088.3,1.69278]
[1765606025475,1.51868001,3088.4,3088.3,0.16188]
[1765606026178,1.51868001,3088.4,3088.3,0.93998]
[1765606028582,1.477,3088.3,3088.2,3.2078]
[1765606028777,2.14956596,3088.3,3088.2,3.2078]
[1765606037193,1.477,3087.9,3087.8,1.69281]
[1765606037391,1.477,3087.9,3087.8,4.90061]
[1765606042795,0.7231,3087.9,3087.8,4.90061]
[1765606045201,0.7231,3087.9,3087.8,1.69281]
[1765606045498,0.7231,3087.9,3087.8,4.90061]
[1765606047098,1.4672,3087.9,3087.8,4.90061]
[1765606051910,1.4672,3087.9,3087.8,3.9859]
[1765606053613,1.9426,3087.5,3087.4,3.2078]
[1765606053912,2.6154477,3087.5,3087.4,3.2078]
[1765606055211,1.8713477,3087.5,3087.4,4.7047]
[1765606055405,2.1821477,3087.5,3087.4,4.7047]
[1765606055606,2.18232899,3087.5,3087.4,4.7047]
[1765606056008,2.61562899,3087.5,3087.4,4.7047]
[1765606063028,2.61562899,3087.5,3087.4,1.4969]
[1765606065438,2.61562899,3087.5,3087.4,0.7193]
[1765606072740,0.7652,3087.2,3087.1,3.9271]
[1765606072943,0.7652,3087.2,3087.1,4.7047]
[1765606075134,1.5093,3087.2,3087.1,4.7047]
[1765606075643,0.7652,3087.2,3087.1,4.7047]
[1765606077041,2.64962899,3087.5,3087.4,0.7338]
[1765606077246,2.64962899,3087.5,3087.4,1.4896]
[1765606077447,2.21632899,3087.5,3087.4,1.4896]
[1765606078540,2.64032899,3087.5,3087.4,1.4896]
[1765606079246,1.5433,3087.2,3087.1,4.6974]
[1765606080646,1.5433,3087.1,3087.0,0.00486089]
[1765606080844,2.21632899,3087.1,3087.0,0.00486089]
[1765606082846,2.21632899,3087.1,3087.0,0.73866089]
[1765606084348,2.21632899,3087.1,3087.0,0.00486089]
[1765606087753,2.21663719,3087.1,3087.0,0.00486089]
[1765606101559,2.21663719,3087.1,3086.5,0.0032083]
[1765606101560,1.5049,3086.6,3086.5,0.0032083]
[1765606101766,1.5049,3086.6,3086.5,1.5020083]
[1765606104665,1.5049,3086.6,3086.5,2.17534549]
[1765606104963,4.6697,3086.8,3086.7,1.4258]
[1765606108173,5.72281671,3086.8,3086.7,1.4258]
[1765606109365,3.925,3086.8,3086.7,2.09913719]
[1765606111272,0.7172,3086.8,3086.7,2.09913719]
[1765606112076,0.7172,3086.8,3086.7,1.4258]
[1765606115081,1.9212,3087.0,3086.9,1.4258]
[1765606118081,1.9212,3087.0,3086.9,0.721]
[1765606119584,1.4619,3086.7,3086.6,3.9288]
[1765606120783,1.4619,3086.7,3086.6,4.6336]
[1765606125288,0.7172,3086.7,3086.6,4.6336]
[1765606127890,0.7172,3086.7,3086.6,1.4258]
[1765606143207,1.8941,3087.0,3086.9,0.7045]
[1765606143407,2.48921615,3087.0,3086.9,1.4161]
[1765606143602,0.715,3087.0,3086.9,1.4161]
[1765606143998,3.9228,3087.2,3087.1,1.4161]
[1765606144298,4.6426,3087.2,3087.1,1.4161]
[1765606144496,4.6426,3087.2,3087.1,0.7045]
[1765606146103,1.4348,3086.9,3086.8,1.57806]
[1765606146304,1.4348,3086.9,3086.8,0.16196]
[1765606148308,1.4348,3086.9,3086.8,0.86646]
[1765606163314,1.4348,3086.9,3086.8,1.57806]
[1765606163620,0.715,3086.9,3086.8,4.78586]
[1765606163822,1.05344749,3087.3,3086.8,4.78586]
[1765606164117,0.7431,3086.9,3086.8,4.78586]
[1765606164321,1.4467,3086.9,3086.8,4.78586]
[1765606173720,0.7431,3086.9,3086.8,4.78586]
[1765606173916,1.5144,3086.9,3086.8,4.84176]
[1765606174122,1.37938838,3087.0,3086.9,1.472]
[1765606174519,0.7062,3087.0,3086.9,1.472]
[1765606175126,1.4775,3087.2,3087.1,1.472]
[1765606175319,2.53081394,3087.2,3087.1,1.472]
[1765606176522,1.4775,3087.2,3087.1,1.472]
[1765606179730,0.7062,3086.9,3086.8,4.84176]
[1765606179929,0.7062,3086.9,3086.8,1.63396]
[1765606180427,1.4775,3086.9,3086.8,1.63396]
[1765606183125,1.4775,3086.5,3086.4,1.472]
[1765606183321,2.43681148,3086.8,3086.7,1.472]
[1765606183722,0.00486089,3086.8,3086.7,1.472]
[1765606184123,0.00486089,3086.8,3086.7,2.1475386]
[1765606185419,0.71106089,3086.8,3086.7,2.1475386]
[1765606185618,0.71106089,3086.8,3086.7,1.47435083]
[1765606187032,0.00486089,3086.8,3086.7,1.47435083]
[1765606202333,0.00486089,3086.8,3086.7,1.63632083]
[1765606203644,0.72076089,3086.8,3086.7,1.63632083]
[1765606203841,1.43486089,3086.8,3086.7,1.63632083]
[1765606204038,2.10804866,3086.8,3086.7,1.63632083]
[1765606206039,2.10804866,3086.8,3086.7,0.00235083]
[1765606206838,2.10804866,3086.8,3086.7,0.71185083]
[1765606209045,2.10804866,3086.8,3086.7,1.48235083]
[1765606216147,2.10804866,3086.8,3086.7,0.71185083]
[1765606216847,2.10804866,3086.8,3086.7,1.48235083]
[1765606218153,1.43486089,3086.8,3086.7,1.48235083]
[1765606218554,1.43486089,3086.8,3086.7,0.71185083]
[1765606219557,1.43486089,3086.8,3086.7,1.48235083]
[1765606221762,1.43486089,3086.8,3086.7,0.71185083]
[1765606222854,1.43486089,3086.8,3086.7,1.44475083]
[1765606223662,1.43486089,3086.8,3086.7,0.71185083]
[1765606223862,1.43486089,3086.8,3086.7,1.44475083]
[1765606229370,0.00486089,3086.8,3086.7,2.11809877]
[1765606229868,0.76966089,3086.8,3086.7,2.11809877]
[1765606230265,0.00486089,3086.8,3086.7,2.11809877]
[1765606235872,0.00486089,3086.8,3086.7,1.44475083]
[1765606236671,0.76966089,3086.8,3086.7,1.44475083]
[1765606236972,0.00486089,3086.8,3086.7,1.44475083]
[1765606261284,0.00486089,3086.8,3086.7,1.60672083]
[1765606270095,0.00486089,3086.8,3086.7,4.81452083]
[1765606280501,0.00486089,3086.8,3086.7,1.60672083]
[1765606280702,0.00486089,3086.8,3086.7,4.81452083]
[1765606281300,0.00486089,3086.8,3086.7,5.48764542]
[1765606284107,0.00486089,3086.8,3086.7,4.81452083]
[1765606297934,0.00486089,3086.8,3086.7,5.48770725]
[1765606314633,0.00486089,3086.8,3086.7,5.48765187]
[1765606332955,1.47186089,3086.8,3086.7,5.48765187]
[1765606333252,0.00486089,3086.8,3086.7,4.81452083]
[1765606335555,0.75426089,3086.8,3086.7,4.81452083]
[1765606339860,1.47186089,3086.8,3086.7,4.81452083]
[1765606340063,0.75426089,3086.8,3086.7,4.81452083]
[1765606340259,1.47696089,3086.8,3086.7,3.37212083]
[1765606340564,2.15009193,3086.8,3086.7,3.37212083]
[1765606340859,2.15009193,3086.8,3086.7,4.08392083]
[1765606343866,2.15009193,3086.8,3086.7,3.37212083]
[1765606345167,2.15034705,3086.8,3086.7,3.37212083]
[1765606347166,2.15034705,3086.8,3086.7,4.09612083]